bitfinex-derivatives/quotes_BTCF0:USTF0_20250417
["timestamp","ask_amount","ask_price","bid_price","bid_amount"]
[1744887369094,0.4060965,84400.0,84399.0,0.1185179]
[1744887369589,0.4060965,84400.0,84399.0,0.1510179]
[1744887374895,0.19308,84400.0,84399.0,0.1510179]
[1744887375197,0.19308,84400.0,84399.0,0.2158179]
[1744887375389,0.193,84400.0,84399.0,0.2158179]
[1744887375695,0.19308,84400.0,84399.0,0.2158179]
[1744887381897,0.193,84400.0,84399.0,0.2158179]
[1744887382104,0.19308,84400.0,84399.0,0.2158179]
[1744887383593,0.19308,84400.0,84399.0,0.1833179]
[1744887385300,0.22388,84400.0,84399.0,0.1833179]
[1744887387203,0.19308,84400.0,84399.0,0.1833179]
[1744887387501,0.19308,84400.0,84399.0,0.2134179]
[1744887388790,0.19308,84400.0,84399.0,0.5742179]
[1744887390094,0.19308,84400.0,84399.0,0.58329544]
[1744887390500,0.193,84400.0,84399.0,0.58329544]
[1744887390805,0.19308,84400.0,84399.0,0.58329544]
[1744887391502,0.19308,84400.0,84399.0,0.22249544]
[1744887391692,0.19308,84400.0,84399.0,0.58329544]
[1744887396998,0.19308,84400.0,84399.0,0.22249544]
[1744887397193,0.19308,84400.0,84399.0,0.58329544]
[1744887397807,0.19308,84400.0,84399.0,0.22249544]
[1744887398409,0.19308,84400.0,84399.0,0.58329544]
[1744887403104,0.19308,84400.0,84399.0,0.59623775]
[1744887404506,0.19308,84400.0,84399.0,0.56613775]
[1744887405512,0.3115965,84400.0,84399.0,0.17303775]
[1744887405904,0.3115965,84400.0,84399.0,0.12759544]
[1744887406107,0.3759965,84400.0,84399.0,0.12759544]
[1744887411312,0.4080965,84400.0,84399.0,0.12759544]
[1744887413212,0.4080965,84400.0,84399.0,0.15819544]
[1744887425435,0.4080965,84400.0,84399.0,0.18999544]
[1744887434343,0.4080965,84400.0,84399.0,0.15819544]
[1744887436744,0.4080965,84400.0,84399.0,0.19059544]
[1744887439042,0.4080965,84400.0,84399.0,0.15819544]
[1744887446853,0.4080965,84400.0,84399.0,0.1491179]
[1744887450244,0.7688965,84400.0,84399.0,0.1491179]
[1744887452556,0.4080965,84400.0,84399.0,0.1491179]
[1744887452759,0.7688965,84400.0,84399.0,0.1491179]
[1744887453452,0.4080965,84400.0,84399.0,0.1491179]
[1744887453755,0.7688965,84400.0,84399.0,0.1491179]
[1744887456862,0.7688965,84400.0,84399.0,0.1818179]
[1744887457757,0.4080965,84400.0,84399.0,0.1818179]
[1744887457958,0.7688965,84400.0,84399.0,0.1818179]
[1744887458759,0.4080965,84400.0,84399.0,0.1818179]
[1744887458965,0.7688965,84400.0,84399.0,0.1818179]
[1744887459561,0.4080965,84400.0,84399.0,0.1818179]
[1744887459757,0.7688965,84400.0,84399.0,0.1818179]
[1744887461161,0.7365965,84400.0,84399.0,0.1818179]
[1744887461666,0.3757965,84400.0,84399.0,0.1818179]
[1744887462767,0.7365965,84400.0,84399.0,0.1818179]
[1744887463158,0.3757965,84400.0,84399.0,0.1818179]
[1744887466571,0.3757965,84400.0,84399.0,0.2018179]
[1744887480575,0.4064965,84400.0,84399.0,0.2018179]
[1744887486683,0.3757965,84400.0,84399.0,0.2018179]
[1744887494785,0.4075965,84400.0,84399.0,0.2018179]
[1744887502388,0.19308,84400.0,84399.0,0.5626179]
[1744887502889,0.183,84400.0,84399.0,0.5426179]
[1744887503088,0.18308,84400.0,84399.0,0.5426179]
[1744887506092,0.18308,84400.0,84399.0,0.1818179]
[1744887506286,0.18308,84400.0,84399.0,0.5426179]
[1744887506487,0.18308,84400.0,84399.0,0.1818179]
[1744887506793,0.18308,84400.0,84399.0,0.5426179]
[1744887507094,0.18308,84400.0,84399.0,0.1818179]
[1744887508882,0.21568,84400.0,84399.0,0.1818179]
[1744887509694,0.3341965,84400.0,84399.0,0.1818179]
[1744887510993,0.3341965,84400.0,84399.0,0.1491179]
[1744887511197,0.3665965,84400.0,84399.0,0.1491179]
[1744887512896,0.3341965,84400.0,84399.0,0.1491179]
[1744887513086,0.3341965,84400.0,84399.0,0.2147179]
[1744887515999,0.3015965,84400.0,84399.0,0.2147179]
[1744887524198,0.18308,84400.0,84399.0,0.2147179]
[1744887535003,0.183,84400.0,84399.0,0.2147179]
[1744887535210,0.18308,84400.0,84399.0,0.2147179]
[1744887535505,0.183,84400.0,84399.0,0.2147179]
[1744887535708,0.18308,84400.0,84399.0,0.2147179]
[1744887536208,0.18308,84400.0,84399.0,0.2872379]
[1744887543307,0.00308,84400.0,84399.0,0.2872379]
[1744887551220,0.01308,84400.0,84399.0,0.2872379]
[1744887555913,0.01308,84400.0,84399.0,0.2545379]
[1744887556820,0.04458,84400.0,84399.0,0.2545379]
[1744887557424,0.04458,84400.0,84399.0,0.6153379]
[1744887557723,0.04458,84400.0,84399.0,0.5824379]
[1744887559915,0.01308,84400.0,84399.0,0.6144379]
[1744887560926,0.04628,84400.0,84399.0,0.6144379]
[1744887563821,0.04428,84400.0,84399.0,0.6144379]
[1744887564019,0.04528,84400.0,84399.0,0.6144379]
[1744887565321,0.01208,84400.0,84399.0,0.6144379]
[1744887567026,0.00208,84400.0,84399.0,0.6144379]
[1744887568124,0.00208,84400.0,84399.0,0.2536379]
[1744887568431,0.00208,84400.0,84399.0,0.6144379]
[1744887569926,0.01208,84400.0,84399.0,0.6144379]
[1744887570325,0.02208,84400.0,84399.0,0.5824379]
[1744887571024,0.08258,84400.0,84399.0,0.5824379]
[1744887574725,0.08258,84400.0,84399.0,0.6154379]
[1744887577425,0.05238,84400.0,84399.0,0.6154379]
[1744887577622,0.02208,84400.0,84399.0,0.6154379]
[1744887590732,0.01208,84400.0,84399.0,0.6154379]
[1744887595428,0.00208,84400.0,84399.0,0.6154379]
[1744887595833,0.01,84400.0,84399.0,0.6746967]
[1744887596034,0.0307,84414.0,84407.0,0.1185067]
[1744887596035,0.005,84410.0,84407.0,0.1185067]
[1744887596235,0.00514581,84410.0,84407.0,0.4793067]
[1744887596440,0.005,84410.0,84407.0,0.5755067]
[1744887596647,0.00025776,84408.0,84407.0,0.6479867]
[1744887597343,0.00225776,84408.0,84407.0,0.6479867]
[1744887597545,0.00217776,84408.0,84407.0,0.6479867]
[1744887597742,0.00225776,84408.0,84407.0,0.6479867]
[1744887597944,0.00525776,84408.0,84407.0,0.6479867]
[1744887598843,0.00517776,84408.0,84407.0,0.6479867]
[1744887599239,0.00525776,84408.0,84407.0,0.6479867]
[1744887600255,6e-08,84408.0,84407.0,0.6479867]
[1744887601646,0.0002853,84416.0,84415.0,0.1184955]
[1744887601839,0.0002853,84416.0,84415.0,0.4792955]
[1744887602043,0.00017729,84416.0,84415.0,0.4792955]
[1744887602239,0.00017729,84416.0,84415.0,0.5104955]
[1744887602749,0.00025729,84416.0,84415.0,0.5104955]
[1744887603044,0.00125729,84416.0,84415.0,0.5104955]
[1744887604445,0.00225729,84416.0,84415.0,0.5104955]
[1744887604745,0.00225729,84416.0,84415.0,0.5437955]
[1744887606745,0.00225729,84416.0,84415.0,0.5763955]
[1744887609555,0.00225729,84416.0,84415.0,0.9371955]
[1744887610849,0.00225729,84416.0,84415.0,0.9045955]
[1744887618754,0.00225729,84416.0,84415.0,0.1829955]
[1744887618960,0.00225729,84416.0,84415.0,0.9045955]
[1744887619349,0.0611,84424.0,84423.0,0.1184842]
[1744887619551,0.1211,84424.0,84423.0,0.4792842]
[1744887619753,0.1211,84424.0,84423.0,0.5103842]
[1744887621265,0.1241,84424.0,84423.0,0.5103842]
[1744887621859,0.1241,84424.0,84423.0,0.52237031]
[1744887622158,0.12718,84424.0,84423.0,0.52237031]
[1744887622347,0.12718,84424.0,84423.0,0.55297031]
[1744887623160,0.09608,84424.0,84423.0,0.55297031]
[1744887623360,0.06608,84424.0,84423.0,0.55297031]
[1744887623561,0.00608,84424.0,84423.0,0.81297031]
[1744887624061,0.0652,84435.0,84434.0,0.1184688]
[1744887624262,0.09,84435.0,84434.0,0.4792688]
[1744887624466,0.09,84435.0,84434.0,0.5411688]
[1744887624655,0.09008,84435.0,84434.0,0.5411688]
[1744887624848,0.09,84435.0,84434.0,0.5411688]
[1744887625049,0.09008,84435.0,84434.0,0.5411688]
[1744887625246,0.09308,84435.0,84434.0,0.5411688]
[1744887625557,0.09608,84435.0,84434.0,0.5411688]
[1744887625855,0.00608,84435.0,84434.0,0.5106688]
[1744887626055,0.07128,84435.0,84434.0,0.5106688]
[1744887626256,0.07128,84435.0,84434.0,0.5831088]
[1744887626759,0.07128,84435.0,84434.0,0.6133088]
[1744887627659,0.03808,84435.0,84434.0,0.6133088]
[1744887628655,0.06898,84435.0,84434.0,0.6133088]
[1744887629767,0.03808,84435.0,84434.0,0.6133088]
[1744887630065,0.00608,84435.0,84434.0,0.6133088]
[1744887630366,0.006,84435.0,84434.0,0.5408688]
[1744887630566,0.00608,84435.0,84434.0,0.6453088]
[1744887634569,0.03838,84435.0,84434.0,0.6453088]
[1744887634961,0.03838,84435.0,84434.0,0.6133088]
[1744887636279,0.04838,84435.0,84434.0,0.6133088]
[1744887637472,0.03838,84435.0,84434.0,0.6133088]
[1744887638877,0.03838,84435.0,84434.0,0.2525088]
[1744887639069,0.03838,84435.0,84434.0,0.6133088]
[1744887639369,0.03838,84435.0,84434.0,0.2525088]
[1744887639574,0.03838,84435.0,84434.0,0.6133088]
[1744887640872,0.00608,84435.0,84434.0,0.6133088]
[1744887641367,0.00608,84435.0,84434.0,0.2525088]
[1744887641567,0.00608,84435.0,84434.0,0.6133088]
[1744887642382,0.00608,84435.0,84434.0,0.2525088]
[1744887642573,0.00608,84435.0,84434.0,0.6133088]
[1744887643177,0.00608,84435.0,84434.0,0.2525088]
[1744887643381,0.00608,84435.0,84434.0,0.6133088]
[1744887645380,0.00608,84435.0,84434.0,0.2525088]
[1744887645585,0.00608,84435.0,84434.0,0.6133088]
[1744887649182,0.03728,84435.0,84434.0,0.6133088]
[1744887649372,0.06798,84435.0,84434.0,0.6133088]
[1744887650383,0.07798,84435.0,84434.0,0.6133088]
[1744887653083,0.06798,84435.0,84434.0,0.6133088]
[1744887656885,0.03728,84435.0,84434.0,0.6133088]
[1744887657287,0.00608,84435.0,84434.0,0.6133088]
[1744887657983,0.0634,84446.0,84445.0,0.1184534]
[1744887658185,0.165,84446.0,84445.0,0.4792534]
[1744887658794,0.165,84446.0,84445.0,0.5424534]
[1744887659186,0.16508,84446.0,84445.0,0.5424534]
[1744887659377,0.16908,84446.0,84445.0,0.5424534]
[1744887660390,0.07408,84446.0,84445.0,0.5424534]
[1744887660687,0.07708,84446.0,84445.0,0.5739534]
[1744887661186,0.07408,84446.0,84445.0,0.5739534]
[1744887662794,0.07408,84446.0,84445.0,0.58287892]
[1744887663088,0.00026573,84464.0,84461.0,0.1184309]
[1744887663279,0.105,84462.0,84461.0,0.5093309]
[1744887663878,0.105,84462.0,84461.0,0.52116041]
[1744887664278,0.10808,84462.0,84461.0,0.52116041]
[1744887664485,0.17118,84462.0,84461.0,0.52116041]
[1744887665486,0.17218,84462.0,84461.0,0.52116041]
[1744887667593,0.00010801,84464.0,84463.0,0.1184281]
[1744887667795,0.09010801,84464.0,84463.0,0.1184281]
[1744887667981,0.09010801,84464.0,84463.0,0.1818281]
[1744887670097,0.09008,84464.0,84463.0,0.1818281]
[1744887670496,0.09,84464.0,84463.0,0.1818281]
[1744887670696,0.09008,84464.0,84463.0,0.1818281]
[1744887670993,0.0637,84480.0,84479.0,0.1184057]
[1744887671200,0.2137,84480.0,84479.0,0.1184057]
[1744887674719,0.1827,84480.0,84479.0,0.1184057]
[1744887675111,0.1827,84480.0,84479.0,0.1497057]
[1744887677511,0.2153,84480.0,84479.0,0.1497057]
[1744887679710,0.2153,84480.0,84479.0,0.1184057]
[1744887680114,0.2153,84480.0,84479.0,0.1491057]
[1744887681517,0.15,84480.0,84479.0,0.1491057]
[1744887682021,0.15008,84480.0,84479.0,0.1491057]
[1744887682415,0.005,84488.0,84487.0,0.1183945]
[1744887682610,0.085,84488.0,84487.0,0.5515545]
[1744887682825,0.085,84488.0,84487.0,0.5817545]
[1744887683210,0.085,84488.0,84487.0,0.6149545]
[1744887686813,0.2033931,84488.0,84487.0,0.5847545]
[1744887687224,0.2543931,84488.0,84487.0,0.5847545]
[1744887688223,0.136,84488.0,84487.0,0.5847545]
[1744887689227,0.136,84488.0,84487.0,0.6154545]
[1744887689522,0.116,84488.0,84487.0,0.6154545]
[1744887689729,0.085,84488.0,84487.0,0.6154545]
[1744887689928,0.0591794,84513.0,84493.0,0.0591925]
[1744887690120,0.22,84500.0,84499.0,0.1183777]
[1744887691023,0.22,84500.0,84499.0,0.1838777]
[1744887692121,0.22,84500.0,84499.0,0.19285921]
[1744887692327,0.2517,84500.0,84499.0,0.19285921]
[1744887693020,0.3700763,84500.0,84499.0,0.19285921]
[1744887693528,0.2517,84500.0,84499.0,0.19285921]
[1744887694821,0.22,84500.0,84499.0,0.19285921]
[1744887696723,0.2848,84500.0,84499.0,0.19285921]
[1744887700432,0.2526,84500.0,84499.0,0.19285921]
[1744887701629,0.22,84500.0,84499.0,0.19285921]
[1744887703235,0.22,84500.0,84499.0,0.55365921]
[1744887707338,0.22,84500.0,84499.0,0.19285921]
[1744887707535,0.22,84500.0,84499.0,0.55365921]
[1744887707935,0.22,84500.0,84499.0,0.52095921]
[1744887708137,0.3708763,84500.0,84499.0,0.52095921]
[1744887708735,0.2525,84500.0,84499.0,0.52095921]
[1744887709039,0.22,84500.0,84499.0,0.58395921]
[1744887711651,0.22008,84500.0,84499.0,0.58395921]
[1744887712249,0.22008,84500.0,84499.0,0.59947617]
[1744887713339,0.22008,84500.0,84499.0,0.58395921]
[1744887715845,0.22008,84500.0,84499.0,0.65631921]
[1744887716956,0.22008,84500.0,84499.0,0.67190035]
[1744887718748,0.3384563,84500.0,84499.0,0.41816265]
[1744887718945,0.3384563,84500.0,84499.0,0.40258151]
[1744887719139,0.4021563,84500.0,84499.0,0.40258151]
[1744887719346,0.4221563,84500.0,84499.0,0.40258151]
[1744887719846,0.4221563,84500.0,84499.0,0.3936]
[1744887720053,0.1775973,84487.0,84486.0,0.1183916]
[1744887720354,0.767597,84487.0,84486.0,0.1483916]
[1744887720549,0.767597,84487.0,84486.0,0.03]
[1744887720941,0.767597,84487.0,84486.0,0.1483959]
[1744887721143,0.767597,84487.0,84486.0,0.1183959]
[1744887723454,0.767597,84487.0,84486.0,0.1506959]
[1744887724257,0.5899986,84487.0,84486.0,0.1506959]
[1744887725958,0.6429986,84487.0,84486.0,0.1807959]
[1744887728048,0.6229986,84487.0,84486.0,0.1807959]
[1744887729450,0.5638,84487.0,84486.0,0.1807959]
[1744887731257,0.17,84487.0,84486.0,0.1807959]
[1744887731557,0.17008,84487.0,84486.0,0.1807959]
[1744887732563,0.17,84487.0,84486.0,0.2531559]
[1744887732861,0.17008,84487.0,84486.0,0.2531559]
[1744887733061,0.17008,84487.0,84486.0,0.26869256]
[1744887733363,8e-05,84487.0,84486.0,0.26869256]
[1744887733553,0.00010801,84491.0,84490.0,0.1183903]
[1744887733863,0.1,84500.0,84499.0,0.1183777]
[1744887734060,0.17,84500.0,84499.0,0.1183777]
[1744887734462,0.17,84500.0,84499.0,0.1819777]
[1744887736165,0.2883763,84500.0,84499.0,0.1819777]
[1744887737462,0.7024763,84500.0,84499.0,0.1509777]
[1744887737660,0.7024763,84500.0,84499.0,0.0326]
[1744887737864,0.7224763,84500.0,84499.0,0.1509777]
[1744887740565,0.6041,84500.0,84485.0,0.0311]
[1744887740866,0.3608,84487.0,84486.0,0.0317]
[1744887741066,0.5108,84487.0,84486.0,0.0317]
[1744887741755,0.6291959,84487.0,84486.0,0.2092884]
[1744887741960,0.6291959,84487.0,84486.0,0.090897]
[1744887742159,0.6908959,84487.0,84486.0,0.0317]
[1744887742360,0.6908959,84487.0,84486.0,0.1500959]
[1744887742961,0.6908959,84487.0,84486.0,0.0317]
[1744887743562,0.6908959,84487.0,84486.0,0.1500959]
[1744887749972,0.6908959,84487.0,84486.0,0.1832959]
[1744887752969,1.0516959,84487.0,84486.0,0.1832959]
[1744887754077,1.0516959,84487.0,84486.0,0.1500959]
[1744887756570,0.3300959,84487.0,84486.0,0.1500959]
[1744887756775,1.0516959,84487.0,84486.0,0.1500959]
[1744887757370,1.0516959,84487.0,84486.0,0.0317]
[1744887757974,1.0516959,84487.0,84486.0,0.1500959]
[1744887759072,1.0316959,84487.0,84486.0,0.1820959]
[1744887759273,0.9999959,84487.0,84486.0,0.1820959]
[1744887762380,1.0000759,84487.0,84486.0,0.1820959]
[1744887764775,0.2784759,84487.0,84486.0,0.1820959]
[1744887765069,1.0000759,84487.0,84486.0,0.1820959]
[1744887770178,1.0200759,84487.0,84486.0,0.1820959]
[1744887770973,0.6592759,84487.0,84486.0,0.1820959]
[1744887771881,0.54088,84487.0,84486.0,0.1820959]
[1744887773081,0.5408,84487.0,84486.0,0.19408594]
[1744887773280,0.54088,84487.0,84486.0,0.19408594]
[1744887774885,0.18008,84487.0,84486.0,0.26856594]
[1744887775096,0.18008,84487.0,84486.0,0.51856594]
[1744887775291,0.18008,84487.0,84486.0,0.53413465]
[1744887775484,0.18,84487.0,84486.0,0.51856594]
[1744887775674,0.18008,84487.0,84486.0,0.51856594]
[1744887776189,0.18008,84487.0,84486.0,0.26856594]
[1744887783688,8e-05,84487.0,84486.0,0.26856594]
[1744887785089,0.00010801,84495.0,84486.0,0.26856594]
[1744887785090,0.00010801,84495.0,84494.0,0.1183847]
[1744887785389,0.16,84495.0,84494.0,0.2115847]
[1744887785591,0.16008,84495.0,84494.0,0.2115847]
[1744887792697,0.1,84500.0,84494.0,0.2115847]
[1744887792698,0.1,84500.0,84499.0,0.1183777]
[1744887792894,0.12,84500.0,84499.0,0.1183777]
[1744887793397,0.12,84500.0,84499.0,0.1789777]
[1744887799684,0.12008,84500.0,84499.0,0.1789777]
[1744887800495,0.12008,84500.0,84499.0,0.1487777]
[1744887800696,0.2384563,84500.0,84499.0,0.1487777]
[1744887800895,0.2384563,84500.0,84499.0,0.1183777]
[1744887801086,0.2884563,84500.0,84499.0,0.1183777]
[1744887802600,0.2884563,84500.0,84499.0,0.1490777]
[1744887802994,0.17008,84500.0,84499.0,0.1490777]
[1744887803497,0.2884563,84500.0,84499.0,0.1490777]
[1744887803999,0.17008,84500.0,84499.0,0.1490777]
[1744887804201,0.2884563,84500.0,84499.0,0.1490777]
[1744887808404,0.6492563,84500.0,84499.0,0.1490777]
[1744887812502,0.53088,84500.0,84499.0,0.1490777]
[1744887813104,0.51088,84500.0,84499.0,0.1792777]
[1744887813908,0.48088,84500.0,84499.0,0.1792777]
[1744887816009,0.12008,84500.0,84499.0,0.19212984]
[1744887816206,0.12008,84500.0,84499.0,0.1792777]
[1744887817108,0.12,84500.0,84499.0,0.1948619]
[1744887817409,0.12008,84500.0,84499.0,0.1948619]
[1744887822211,0.12008,84500.0,84499.0,0.1792777]
[1744887822612,0.3608,84508.0,84503.0,0.0591859]
[1744887822802,0.5108,84508.0,84507.0,0.1183665]
[1744887823204,0.5108,84508.0,84507.0,0.2161665]
[1744887823407,0.51088,84508.0,84507.0,0.2161665]
[1744887832016,0.15008,84508.0,84507.0,0.2161665]
[1744887833002,0.15008,84508.0,84507.0,0.1511665]
[1744887833610,0.20308,84508.0,84507.0,0.1828665]
[1744887834216,0.20308,84508.0,84507.0,0.1511665]
[1744887842723,0.3214451,84508.0,84507.0,0.1511665]
[1744887842927,0.3214451,84508.0,84507.0,0.0328]
[1744887843117,0.1183707,84504.0,84503.0,0.2367383]
[1744887843317,0.2883707,84504.0,84503.0,0.2367383]
[1744887843511,0.3200707,84504.0,84503.0,0.2367383]
[1744887844324,0.3399707,84504.0,84503.0,0.2367383]
[1744887850926,0.2883707,84504.0,84503.0,0.2367383]
[1744887851830,0.2884507,84504.0,84503.0,0.2367383]
[1744887853122,0.3384507,84504.0,84503.0,0.2367383]
[1744887855026,0.6992507,84504.0,84503.0,0.2367383]
[1744887856533,0.6792507,84504.0,84503.0,0.2367383]
[1744887857035,0.6492507,84504.0,84503.0,0.2367383]
[1744887857427,0.53088,84504.0,84503.0,0.2367383]
[1744887860432,0.5308,84504.0,84503.0,0.2367383]
[1744887860633,0.53088,84504.0,84503.0,0.2367383]
[1744887865940,0.5308,84504.0,84503.0,0.2367383]
[1744887866238,0.53088,84504.0,84503.0,0.2367383]
[1744887868532,0.5308,84504.0,84503.0,0.2367383]
[1744887868848,0.53088,84504.0,84503.0,0.2367383]
[1744887870237,0.53088,84504.0,84503.0,0.2523572]
[1744887870941,0.53088,84504.0,84503.0,0.2367383]
[1744887874036,0.53088,84504.0,84503.0,0.25236145]
[1744887874339,0.17008,84504.0,84503.0,0.32576145]
[1744887874643,0.09981602,84504.0,84503.0,0.3386148]
[1744887874937,0.09973602,84504.0,84503.0,0.3386148]
[1744887875139,0.09981602,84504.0,84503.0,0.3386148]
[1744887876135,0.09981602,84504.0,84503.0,0.32576145]
[1744887877245,0.09981602,84504.0,84503.0,0.3101383]
[1744887878935,0.09981602,84504.0,84503.0,0.3738383]
[1744887880339,8e-05,84504.0,84503.0,0.3738383]
[1744887880538,1e-07,84504.0,84503.0,0.3738383]
[1744887880737,1e-07,84504.0,84503.0,0.38672564]
[1744887880943,0.3608,84533.0,84532.0,0.1183315]
[1744887881246,0.6008,84533.0,84532.0,0.1810315]
[1744887882348,0.5408,84533.0,84532.0,0.1810315]
[1744887882744,0.54088,84533.0,84532.0,0.1810315]
[1744887883854,0.5408,84533.0,84532.0,0.18981473]
[1744887884144,0.54088,84533.0,84532.0,0.18981473]
[1744887885540,0.5408,84533.0,84532.0,0.18981473]
[1744887886245,0.54088,84533.0,84532.0,0.18981473]
[1744887887046,0.54088,84533.0,84532.0,0.15921473]
[1744887888355,0.57358,84533.0,84532.0,0.15921473]
[1744887888539,0.6919101,84533.0,84532.0,0.15921473]
[1744887889037,0.7119101,84533.0,84532.0,0.15921473]
[1744887890540,0.3511101,84533.0,84532.0,0.15921473]
[1744887890754,0.7119101,84533.0,84532.0,0.15921473]
[1744887893657,0.3511101,84533.0,84532.0,0.15921473]
[1744887893956,0.7119101,84533.0,84532.0,0.15921473]
[1744887897857,0.59358,84533.0,84532.0,0.15921473]
[1744887898053,0.54088,84533.0,84532.0,0.19071473]
[1744887899056,0.5408,84533.0,84532.0,0.19071473]
[1744887899861,0.54088,84533.0,84532.0,0.19071473]
[1744887901359,0.5408,84533.0,84532.0,0.19071473]
[1744887901752,0.54088,84533.0,84532.0,0.19071473]
[1744887901957,0.5408,84533.0,84532.0,0.19071473]
[1744887902156,0.54088,84533.0,84532.0,0.19071473]
[1744887904557,0.54088,84533.0,84532.0,0.26435473]
[1744887908663,0.60528,84533.0,84532.0,0.26435473]
[1744887909563,0.57288,84533.0,84532.0,0.19071473]
[1744887909750,0.54088,84533.0,84532.0,0.19071473]
[1744887913468,0.18008,84533.0,84532.0,0.19071473]
[1744887922587,0.18008,84533.0,84532.0,0.20628384]
[1744887927091,0.18008,84533.0,84532.0,0.19071473]
[1744887928581,0.18008,84533.0,84532.0,0.20628086]
[1744887929389,0.18008,84533.0,84532.0,0.19071473]
[1744887944701,0.21228,84533.0,84532.0,0.19071473]
[1744887945599,0.21228,84533.0,84532.0,0.15921473]
[1744887946606,0.0591683,84529.0,84525.0,0.01211761]
[1744887946795,0.1183413,84525.0,84521.0,0.0318]
[1744887946995,0.5083413,84525.0,84521.0,0.0318]
[1744887947191,0.5605413,84525.0,84521.0,0.0318]
[1744887947602,0.1183525,84517.0,84512.0,0.24202221]
[1744887947810,0.8691525,84517.0,84512.0,0.24202221]
[1744887947995,1.1713525,84517.0,84512.0,0.24202221]
[1744887948199,0.1183581,84513.0,84512.0,0.36038171]
[1744887948400,0.5383581,84513.0,84512.0,0.36038171]
[1744887948594,0.8405581,84513.0,84512.0,0.24202221]
[1744887948906,0.8405581,84513.0,84512.0,0.36038171]
[1744887949600,0.8405581,84513.0,84512.0,0.24202221]
[1744887949792,0.8405581,84513.0,84512.0,0.36038171]
[1744887950901,0.8715581,84513.0,84512.0,0.36038171]
[1744887951612,0.6215581,84513.0,84512.0,0.1183595]
[1744887952501,0.6215581,84513.0,84512.0,0.1494595]
[1744887954110,0.17,84513.0,84512.0,0.1494595]
[1744887954301,0.17,84513.0,84512.0,0.2106595]
[1744887954698,0.17008,84513.0,84512.0,0.2106595]
[1744887954999,0.53088,84513.0,84512.0,0.2106595]
[1744887961903,0.5308,84513.0,84512.0,0.2106595]
[1744887962107,0.53088,84513.0,84512.0,0.2106595]
[1744887963312,0.53088,84513.0,84512.0,0.2136595]
[1744887963813,0.53088,84513.0,84512.0,0.2146595]
[1744887977524,0.5308,84513.0,84512.0,0.2146595]
[1744887977715,0.53088,84513.0,84512.0,0.2146595]
[1744887987419,0.17008,84513.0,84512.0,0.2146595]
[1744887989429,0.20308,84513.0,84512.0,0.2146595]
[1744887993724,0.17008,84513.0,84512.0,0.2146595]
[1744888003534,0.00017679,84521.0,84520.0,0.1183483]
[1744888003731,0.16017679,84521.0,84520.0,0.1183483]
[1744888003942,0.16017679,84521.0,84520.0,0.2114483]
[1744888004138,0.16025679,84521.0,84520.0,0.2114483]
[1744888010444,0.16025679,84521.0,84520.0,0.1799483]
[1744888010642,0.21245679,84521.0,84520.0,0.1799483]
[1744888012245,0.24325679,84521.0,84520.0,0.1799483]
[1744888014834,0.24325679,84521.0,84520.0,0.1831483]
[1744888017549,0.36160369,84521.0,84520.0,0.1831483]
[1744888019548,0.72240369,84521.0,84520.0,0.1831483]
[1744888020249,0.73240369,84521.0,84520.0,0.1831483]
[1744888020450,0.72240369,84521.0,84520.0,0.1831483]
[1744888020945,0.60405679,84521.0,84520.0,0.1831483]
[1744888021141,0.58405679,84521.0,84520.0,0.1831483]
[1744888021444,0.70240369,84521.0,84520.0,0.1831483]
[1744888022337,0.52105679,84521.0,84520.0,0.1831483]
[1744888027049,0.52097679,84521.0,84520.0,0.1831483]
[1744888027247,0.52105679,84521.0,84520.0,0.1831483]
[1744888029242,0.16025679,84521.0,84520.0,0.1831483]
[1744888029441,0.52097679,84521.0,84520.0,0.1831483]
[1744888030248,0.52105679,84521.0,84520.0,0.1831483]
[1744888034343,0.16025679,84521.0,84520.0,0.1831483]
[1744888040854,0.16017679,84521.0,84520.0,0.1831483]
[1744888041245,0.16025679,84521.0,84520.0,0.1831483]
[1744888041448,0.11874023,84521.0,84520.0,0.1831483]
[1744888041749,0.11882023,84521.0,84520.0,0.1831483]
[1744888041951,0.11874023,84521.0,84520.0,0.1831483]
[1744888042141,0.11882023,84521.0,84520.0,0.1831483]
[1744888059964,0.11882023,84521.0,84520.0,0.1860483]
[1744888065573,0.3608,84530.0,84529.0,0.1183357]
[1744888065776,0.4008,84530.0,84529.0,0.1183357]
[1744888066270,0.4008,84530.0,84529.0,0.1797357]
[1744888066769,0.40288,84530.0,84529.0,0.1797357]
[1744888067165,0.40288,84530.0,84529.0,0.19160901]
[1744888068169,0.40488,84530.0,84529.0,0.19160901]
[1744888069863,0.5232143,84530.0,84529.0,0.16030901]
[1744888070063,0.40488,84530.0,84529.0,0.16030901]
[1744888070769,0.45568,84530.0,84529.0,0.16030901]
[1744888071481,0.5740143,84530.0,84529.0,0.16030901]
[1744888073781,0.5740143,84530.0,84529.0,0.1484357]
[1744888073968,0.45568,84530.0,84529.0,0.1484357]
[1744888076181,0.09488,84530.0,84529.0,0.1484357]
[1744888076385,0.45568,84530.0,84529.0,0.1484357]
[1744888079673,0.45568,84530.0,84529.0,0.1809357]
[1744888081277,0.5740143,84530.0,84529.0,0.1484357]
[1744888081485,0.5840143,84530.0,84529.0,0.1484357]
[1744888082590,0.71568,84530.0,84521.0,0.00017754]
[1744888082776,0.4791455,84522.0,84521.0,0.00017754]
[1744888082976,0.6391455,84522.0,84521.0,0.14952444]
[1744888083180,0.7224455,84522.0,84521.0,0.14952444]
[1744888085179,0.5941,84522.0,84521.0,0.14952444]
[1744888085485,0.5108,84522.0,84521.0,0.18232444]
[1744888085692,0.5108,84522.0,84521.0,0.21422444]
[1744888085890,0.51088,84522.0,84521.0,0.21422444]
[1744888086091,0.5108,84522.0,84521.0,0.21422444]
[1744888086287,0.51088,84522.0,84521.0,0.21422444]
[1744888086987,0.15008,84522.0,84521.0,0.21422444]
[1744888092496,0.15,84522.0,84521.0,0.21422444]
[1744888092698,0.15008,84522.0,84521.0,0.21422444]
[1744888093887,8e-05,84522.0,84521.0,0.21422444]
[1744888098298,8e-05,84522.0,84521.0,0.57502444]
[1744888098604,0.01,84539.0,84534.0,0.1183287]
[1744888098899,0.5208,84535.0,84534.0,0.1183287]
[1744888099200,0.5208,84535.0,84534.0,0.2143287]
[1744888099887,0.5238,84535.0,84534.0,0.2143287]
[1744888100301,0.5268,84535.0,84534.0,0.2143287]
[1744888101789,0.5268,84535.0,84534.0,0.1827287]
[1744888102488,0.5776,84535.0,84534.0,0.1827287]
[1744888103494,0.6959273,84535.0,84534.0,0.1501287]
[1744888103697,0.7059273,84535.0,84533.0,0.059165]